Cogmind - Beta 15 @@@ ROGUE MODE // 2025.07.20 @ 16:25:33 Player: amhumam Result: Destroyed by MY-RPS(R) with Subdweller Beam Cannon Performance ------------- Evolutions (0) 0 Regions Visited (2) 400 Robots Destroyed (20) 100 Value Destroyed (690) 690 Prototype IDs (0) 0 Alien Tech Used (0) 0 Bonus (0) 0 TOTAL SCORE: 1190 Bonus ------- None Cogmind --------- Core Integrity 0/250 Matter 285/300 Energy 130/250 System Corruption 2% Temperature Cool (50) Movement Rolling (120) Ox1 Location -10/Subcaves Parts ------- > --- POWER (1) -------- Ion Engine > --- PROPULSION (2) --- Subdweller Monowheel Subdweller Monowheel > --- UTILITY (2) ------ High-capacity Storage Unit > --- WEAPON (2) ------- Spread Laser Particle Cannon > --- INVENTORY (20) --- Subdweller Power Source Improved Heat Sink Medium Storage Unit Terrain Scanner Terrain Scanner Spread Laser Spread Laser Spread Laser Particle Cannon Particle Cannon Heavy Assault Rifle Heavy Assault Rifle Heavy Assault Rifle Subdweller Machine Gun Subdweller Machine Gun Grenade Launcher Grenade Launcher Grenade Launcher Peak State ------------ > --- POWER ------------ Ion Engine > --- PROPULSION ------- Subdweller Monowheel Subdweller Monowheel > --- UTILITY ---------- Improved Heat Sink High-capacity Storage Unit > --- WEAPON ----------- Spread Laser Particle Cannon > --- INVENTORY -------- Subdweller Power Source Improved Heat Sink Medium Storage Unit Terrain Scanner Terrain Scanner Spread Laser Spread Laser Spread Laser Particle Cannon Particle Cannon Heavy Assault Rifle Heavy Assault Rifle Heavy Assault Rifle Subdweller Machine Gun Subdweller Machine Gun Grenade Launcher Grenade Launcher Grenade Launcher [Rating: 16] Favorites ----------- Power Ion Engine Engine Ion Engine Propulsion Light Treads Treads Light Treads Wheel Compact Wheel Utility Improved Heat Sink Device Improved Heat Sink Storage Small Storage Unit Weapon Particle Cannon Energy Gun Spread Laser Energy Cannon Particle Cannon Ballistic Gun Light Assault Rifle Build | -11 -10 -10 ------- Run | Yrd Mat Sub Slots Evolved . | . . . Power . | . . . Propulsion . | . . . Utility . | . . . Weapon . | . . . Parts Attached 21 | 6 11 4 Power 5 | 1 3 1 Engine 5 | 1 3 1 Core . | . . . Reactor . | . . . Propulsion 6 | 2 2 2 Treads 2 | 2 . . Leg . | . . . Wheel 4 | . 2 2 Hover . | . . . Flight . | . . . Utility 4 | 1 3 . Device 1 | . 1 . Storage 3 | 1 2 . Processor . | . . . Hackware . | . . . Protection . | . . . Artifact . | . . . Weapon 6 | 2 3 1 Energy Gun 1 | . . 1 Energy Cannon 2 | . 2 . Ballistic Gun 3 | 2 1 . Ballistic Cannon . | . . . Launcher . | . . . Special Weapon . | . . . Impact Weapon . | . . . Slashing Weapon . | . . . Piercing Weapon . | . . . Special Melee Weapon . | . . . Unidentified Prototypes . | . . . Parts Lost 11 | . 6 5 Power 4 | . 3 1 Propulsion 4 | . 2 2 Utility 1 | . . 1 Weapon 2 | . 1 1 Highest Loss Streak 3 | . 2 3 To Critical Strikes . | . . . Average Backups 9 | 2 8 17 Power . | . . 1 Propulsion 1 | 1 1 . Utility 1 | . . 3 Weapon 6 | . 5 12 Tool/Special . | . . . Unused Backups 19 | . 1 18 Power 1 | . . 1 Propulsion . | . . . Utility 3 | . . 3 Weapon 15 | . 1 14 Tool/Special . | . . . Average Slot Usage (%) 91 | . 90 97 Engine 12 | . 11 13 Treads 12 | . 16 . Wheel 14 | . 10 26 Device 9 | . 7 14 Storage 14 | . 14 14 Energy Gun 2 | . . 11 Energy Cannon 14 | . 14 15 Ballistic Gun 10 | . 14 . Peak Build Rating 16 | 6 13 16 Average Rating 9 | 4 9 13 On Entrance 6 | . 6 13 Naked Turns . | . . . Heaviest Build 54 | 10 54 54 Greatest Support 40 | 40 40 40 Greatest Overweight (x) 3 | . 1 3 Average Overweight (x) . | . . 1 Largest Inventory Capacity 20 | 8 20 20 Average Capacity 12 | 6 10 20 Most Carried 20 | 4 17 20 Average Carried 9 | 2 8 17 Final Capacity 20 | 8 20 20 Final Carried 18 | 4 17 18 Class Distribution -------------------- 100% | Mutant Dominant Class ---------------- Mutant | -10/Materials Mutant | -10/Subcaves Resources | -11 -10 -10 ----------- Run | Yrd Mat Sub Matter Collected 484 | 240 215 29 Remotely . | . . . Salvage Created 757 | . 647 110 Parts 41 | . 29 12 Haulers Intercepted . | . . . Recyclers Shooed . | . . . Parts Field Recycled . | . . . Retrieved Matter . | . . . Parts Self-Destructed 5 | . . 5 Prevented . | . . . Kills | -11 -10 -10 ------- Run | Yrd Mat Sub Combat Hostiles Destroyed 19 | . 14 5 Guns 12 | . 8 4 Cannons 7 | . 6 1 Classes Destroyed 4 | . 2 2 Builder 1 | . 1 . Swarmer 3 | . . 3 Grunt 14 | . 14 . Subdweller 2 | . . 2 Best Kill Streak 4 | . 4 3 Combat Bots Only 3 | . 3 3 Max Kills in Single Turn 1 | . 1 1 Gunslinging . | . . . Exploded . | . . . Melee . | . . . Uniques/NPCs Destroyed . | . . . Combat | -11 -10 -10 -------- Run | Yrd Mat Sub Hostile Shots Fired 138 | . 109 29 Missed 43 | . 33 10 Hits 95 | . 76 19 Projectile 95 | . 76 19 Critical Strikes 1 | . 1 . Damage Taken 1296 | . 927 369 Core 251 | . 159 92 Absorbed by Shields . | . . . Core Remaining (%) 100 | 100 . . Volleys Fired 59 | . 47 12 Largest 2 | . 2 2 Hottest 136 | . 136 133 Shots Fired 118 | . 94 24 Gun 73 | . 61 12 Cannon 45 | . 33 12 Launcher . | . . . Special . | . . . Kinetic 61 | . 61 . Thermal 57 | . 33 24 Explosive . | . . . Electromagnetic . | . . . Robot Hit Streak 13 | . 11 13 Robot Miss Streak 4 | . 4 3 Penetration Max . | . . . Secondary Targets 2 | . 2 . Max Gunslinging Chain 1 | . 1 . Shots Hit Robots 80 | . 63 17 Core Hits 42 | . 23 19 Critical Kills . | . . . Critical Parts Destroyed . | . . . Critical Strikes . | . . . Melee Attacks . | . . . Impact . | . . . Slashing . | . . . Piercing . | . . . Sneak Attacks . | . . . Combat Hostiles . | . . . Follow-up Attacks . | . . . Damage Inflicted 1242 | . 939 303 Guns 587 | . 406 181 Cannons 655 | . 533 122 Explosions . | . . . Melee . | . . . Ramming . | . . . Kinetic 406 | . 406 . Thermal 836 | . 533 303 Explosive . | . . . Electromagnetic . | . . . Impact . | . . . Slashing . | . . . Piercing . | . . . Highest Corruption 2 | . 2 2 Average Corruption 2 | . 2 2 Corruption Purged . | . . . Corruption Blocked . | . . . Effects 3 | . 1 2 Matter Fused 1 | . . 1 Parts Rejected 1 | . . 1 Alerts 1 | . 1 . Overload Shots . | . . . Overflow Damage 6 | . 6 . Projectiles 6 | . 6 . Explosions . | . . . Melee . | . . . Knockbacks . | . . . Impact . | . . . Kinetic . | . . . Secondary . | . . . Self-Inflicted Damage . | . . . Shots . | . . . Rammed . | . . . Targets Rammed . | . . . Kicked . | . . . Crushed . | . . . Highest Temperature 279 | . 279 41 Average Temperature 61 | . 65 20 Received Heat Transfer 564 | . 519 45 Siege Activations . | . . . Martial Activations . | . . . Shielding Activations . | . . . Robots Disrupted . | . . . Combat Hostiles . | . . . Robots Corrupted . | . . . Combat Hostiles . | . . . Parts Fried . | . . . Impact Corruptions . | . . . Robots Melted . | . . . Combat Hostiles . | . . . Parts Melted 1 | . 1 . Heat Transferred 1372 | . 925 447 Parts Sabotaged . | . . . Parts Stolen . | . . . Parts Stripped . | . . . Power Chain Reactions . | . . . Alert | -11 -10 -10 ------- Run | Yrd Mat Sub Maximum Alert Level . | . . . Low Security (%) 100 | 100 100 . Level 1 . | . . . Level 2 . | . . . Level 3 . | . . . Level 4 . | . . . Level 5 . | . . . High Security . | . . . Max Security . | . . . Peak Influence 176 | . 176 . Initial . | . . . Average 63 | . 70 . Influence Increases 568 | . 498 70 Destroy 0b10 Robot/C 340 | . 280 60 Destroy 0b10 Robot/NC 5 | . 5 . Destroy Leader 80 | . 70 10 Successful Hack 15 | . 15 . Select Force Hacks 110 | . 110 . Destroy Structure 3 | . 3 . Lose Combat Pursuer 15 | . 15 . Influence Decreases 568 | . 454 114 Entered New Map 22 | . . 22 Time Decay 366 | . 294 72 Lost Part 60 | . 40 20 Purge Threat 120 | . 120 . Squads Dispatched 4 | . 4 . Investigation 4 | . 4 . Extermination . | . . . Reinforcement . | . . . Assault . | . . . Garrison . | . . . Intercept . | . . . Searches Triggered . | . . . Construction Impeded . | . . . Haulers Reinforced . | . . . Active Scanning Responses . | . . . Cargo Convoy Interrupts . | . . . Stealth | -11 -10 -10 --------- Run | Yrd Mat Sub Distress Signals 2 | . 2 . Communications Jammed . | . . . Distress Signals . | . . . Times Spotted 34 | . 26 8 Peak Tracking Total 5 | . 5 3 Tactical Retreats 2 | . 1 1 Traps | -11 -10 -10 ------- Run | Yrd Mat Sub Traps Triggered 1 | . 1 . Indirectly . | . . . Trap Hack Attempts . | . . . Triggered . | . . . Disarmed . | . . . Reprogrammed . | . . . Reused . | . . . Traps Extracted . | . . . Installed . | . . . Triggered . | . . . Machines | -11 -10 -10 ---------- Run | Yrd Mat Sub Machines Disabled . | . . . Max in Single Turn . | . . . Machines Repaired . | . . . Machines Dismantled . | . . . Machines Sabotaged 1 | . 1 . Overloaded Fab Kills . | . . . Hacking | -11 -10 -10 --------- Run | Yrd Mat Sub Machines Accessed 9 | . 9 . Terminals 7 | . 7 . Fabricators . | . . . Repair Stations . | . . . Recycling Units 2 | . 2 . Scanalyzers . | . . . Garrison Access . | . . . Total Hacks 19 | . 19 . Successful 9 | . 9 . Failed 9 | . 9 . Catastrophic 1 | . 1 . Database Lockouts 1 | . 1 . Manual 23 | . 23 . Terminals 17 | . 17 . Fabricators . | . . . Repair Stations . | . . . Recycling Units 2 | . 2 . Scanalyzers . | . . . Garrison Access . | . . . Terminal Hacks 3 | . 3 . Robot Analysis 2 | . 2 . Unreport Threat 1 | . 1 . Fabricator Hacks . | . . . Repair Station Hacks . | . . . Recycling Unit Hacks . | . . . Scanalyzer . | . . . Garrison Access Hacks . | . . . Unauthorized Hacks 6 | . 6 . Terminals 4 | . 4 . Botnet 3 | . 3 . Sabotage 1 | . 1 . Fabricators . | . . . Repair Stations . | . . . Recycling Units 2 | . 2 . Tunnel 2 | . 2 . Scanalyzers . | . . . Garrison Access . | . . . Data Cores Recovered . | . . . Used . | . . . Hacking Detections 5 | . 5 . Full Trace Events 1 | . 1 . Feedback Events . | . . . Feedback Blocked . | . . . Robot Schematics Acquired . | . . . Robots Built . | . . . Authchips . | . . . Time . | . . . Total Robot Build Rating . | . . . Part Schematics Acquired . | . . . Parts Built . | . . . Authchips . | . . . Time . | . . . Total Part Build Rating . | . . . Parts Repaired . | . . . Time . | . . . Parts Recycled . | . . . Recycled Matter . | . . . Retrieved Matter . | . . . Retrieved Components . | . . . Parts Scanalyzed . | . . . Part Schematics Acquired . | . . . Parts Damaged . | . . . Bothacking | -11 -10 -10 ------------ Run | Yrd Mat Sub Used RIF Installer . | . . . Robots Hacked . | . . . Non-combat . | . . . Combat . | . . . Robot Hacks Applied . | . . . Relay Couplers Released . | . . . Fabnet Peak Effective % . | . . . Robots Rewired . | . . . Allies Hacked . | . . . Hacks Repelled . | . . . Allies | -11 -10 -10 -------- Run | Yrd Mat Sub Total Allies . | . . . Largest Group . | . . . Highest-Rated Group . | . . . Highest-Rated Ally . | . . . Total Orders . | . . . Ally Attacks . | . . . Total Damage . | . . . Kills . | . . . Allies Corrupted . | . . . Allies Melted . | . . . Intel | -11 -10 -10 ------- Run | Yrd Mat Sub Active Infowar (turns) . | . . . Robot Analysis Total 2 | . 2 . Derelict Logs Recovered . | . . . Drone Launches . | . . . Drone Recoveries . | . . . Exploration | -11 -10 -10 ------------- Run | Yrd Mat Sub Turns Passed 1148 | 94 809 245 Spaces Moved 683 | 53 478 152 Core 2 | 2 . . Treads 274 | 51 223 . Legs . | . . . Wheels 407 | . 255 152 Hover . | . . . Flight . | . . . Fastest Speed 50 | 50 100 115 Average Speed 131 | 155 133 116 Slowest Speed 240 | 160 240 145 Overloaded Moves . | . . . Propulsion Burnouts . | . . . Robots Hopped . | . . . Potential Cave-ins . | . . . Cave-ins Triggered . | . . . Exploration Rate (%) 37 | 4 93 16 Regions Visited 2 Branch Regions 1 Pre-discovered Areas 2 | . 2 . Known Exits Taken . | . . . Unknown Exits Taken 2 | 1 1 . Scrap Searched . | . . . Spaces Dug . | . . . Terrain Destroyed 1 | . . 1 Melee . | . . . Projectile 1 | . . 1 AOE . | . . . Terrain Rammed . | . . . Walls Destroyed . | . . . Machines Disabled . | . . . Actions | -11 -10 -10 --------- Run | Yrd Mat Sub Total 821 | 62 563 196 Wait 24 | . 3 21 Move 681 | 52 477 152 Hop . | . . . Pick Up 30 | 4 21 5 Fast Attach 10 | 6 2 2 Attach 8 | . 5 3 Detach . | . . . Swap 4 | . 4 . Drop 5 | . 4 1 Fire 59 | . 47 12 Melee . | . . . Ram . | . . . Kick . | . . . Crush . | . . . Escape Stasis . | . . . Rewire . | . . . Trap . | . . . Miscellaneous . | . . . Route ------- -11/Scrapyard -10/Materials (discovered 6 exits: [*Mat x3] / [*Min x2] / [*Sub]) -10/Subcaves History --------- Turn | Location | Event 13 | -11/Scrapyard | Discovered new exit (range 15) 95 | -11/Scrapyard | Entered Materials 294 | -10/Materials | Discovered new exit (range 12) 305 | -10/Materials | Build established: Mutant 496 | -10/Materials | Discovered new exit (range 8) 517 | -10/Materials | Central database locked down 568 | -10/Materials | Discovered new exit (range 11) 597 | -10/Materials | Core integrity fell below 50% 727 | -10/Materials | Discovered new exit (range 6) 861 | -10/Materials | Discovered new exit (range 16) 899 | -10/Materials | Discovered new exit (range 6) 904 | -10/Materials | Entered Subcaves 1148 | -10/Subcaves | Core integrity fell below 20% 1149 | -10/Subcaves | Destroyed by MY-RPS(R) with Subdweller Beam Cannon Last Messages --------------- 01058_ Com. Wheel destroyed. 01061_ Subatomizers dissect the Sub. Monowheel. 01064_ SK-CIM(R) destroyed. 01070_ Acquired Sub. Monowheel. 01073_ Acquired Terrain Scanner. 01075_ Subatomizers dissect the Sub. Power Source. 01075_ Acquired Sub. Power Source. 01078_ Acquired Sub. Machine Gun. 01083_ Acquired 10 matter. 01085_ Subatomizers dissect the Disposable Heat Sink. 01090_ Dropped Hvy. Assault Rifle. 01090_ Acquired Sub. Monowheel. 01127_ System corrupted: Sub. Monowheel rejected. 01127_ Acquired Sub. Monowheel. 01128_ Com. Wheel destroyed. 01128_ Ion Engine destroyed. 01141_ Imp. Heat Sink destroyed. Map ----- +----------------------------------------------------+ | | | | | ?????????????????????????????????????????????????? | | ?????????????????????????????????????????????????? | | ?????????????????????????????????????????????????? | | ?????????????????????????????????????????????????? | | ?????????????????????????????????????????????????? | | ?????????????????????????????????????????????????? | | ?????????????????????????????????????????????????? | | ?????????????????????????????????????????????????? | | ?????????????????????????????????????????????????? | | ?????????????????????????????????????????????????? | | ?????????????????????????????????????????????????? | | ?????????????????????????????????????????????????? | | ?????????????????????????????????????????????????? | | ?????????????????????????????????????????????????? | | ?????????????????#?????#####?###?????????????????? | | ????????????# ### ##### ### ###???######??????? | | ???????????? "" ##### ##?????? | | ??????????? "" #?????? | | ??????????? "" #?????? | | ??????????# " ##?????? | | ??????????# ###??????? | | ??????????# ## ##????????? | | ???????????# "##???######RR #?????????? | | ???????????????????????#;@ ## #?????????? | | ???????????????????###### ### ##????????? | | ???????????????????? %## ##???????? | | ???????????????????? ## % % % ##??????? | | ????????????????????? ### ##?????? | | ?????????????????????# #??# % ###???? | | ?????????????????????###???## [ % #???? | | ????????????????????????????# &!## #??? | | ????????????????????????????# % ##% %### ##??? | | ????????????????????????????## # !#?# #####???? | | ?????????????????????????????# # *##?###???????? | | ????????????????????????????## ## #???????????? | | ????????????????????????????# # ###??????????? | | ????????????????????????????## # ##?????????? | | ???????????????????????????## #?????##??? | | ???????????????????????????# #????# #??? | | ???????????????????????????# ##???? #??? | | ???????????????????????????## %####??? #??? | | ????????????????????????????## ### #### ##?? | | ????????????????????????????# # # #?? | | ????????????????????????????# % % #??? | | ????????????????????????????# # # % %#???? | | ????????????????????????????# ## #???? | | ????????????????????????????## ### ## #???? | | ?????????????????????????????# ## ##???#???? | +----------------------------------------------------+ Best States ------------- Heat Dissipation 39 Energy Generation 10 Energy Capacity 250 Matter Stores 300 Matter Capacity 300 Sight Range 16 Terrain Scan Density 10 Evasion (%) 40 Recoil Reduction 2 Item Schematics ----------------- None Robot Schematics ------------------ None Fabricated ------------ Nothing Repaired ---------- Nothing Alien Tech Used ----------------- None Achievements -------------- None Challenges ------------ None Game ------ Seed TitaniumVariableWings Manual? 0 Play Time 00:17:26 Cumulative 256.8 hours Start 2025.07.20 @ 16:09:13 End 2025.07.20 @ 16:25:33 Sessions 1 Manual Loads 0 Difficulty Rogue Special Mode None Game No. 227 Rogue 227 Adventurer 0 Explorer 0 Win Type - Total 1 Types 1/0/0/0/0/0/0/0/0/0 Lore% 77 Gallery% 63 Achievement% 55 Wizard Run 0 Options --------- Layout 1 ASCII 0 Keyboard 0 Movement Arrows Keybinds 0 Fullscreen 1 Font 24/Smallcaps Map View 50x35 Zoom Use 0% Tactical HUD 1 Map Filters NONE Filters NONE Steam 1 RUN: 1374ed2d-a0b8-480f-83ec-1473be5414c5